[Event "*** Titled Tuesday Blitz"]
[Site "Chess.com"]
[Date "2020.04.21"]
[Round "3"]
[White "lolo9292"]
[Black "konradrutkowski"]
[Result "1-0"]
[WhiteElo "2514"]
[BlackElo "2179"]
[TimeControl "180+1"]
[EndTime "10:28:20 PDT"]
[Termination "lolo9292 won on time"]

1. e4 {[%clk 0:03:00.9]} 1... c6 {[%clk 0:02:56.2]} 2. Nc3 {[%clk 0:02:56.8]}
2... d5 {[%clk 0:02:55.2]} 3. Nf3 {[%clk 0:02:43.9]} 3... Nf6 {[%clk 0:02:52.3]}
4. e5 {[%clk 0:02:43.6]} 4... Ne4 {[%clk 0:02:52.3]} 5. d4 {[%clk 0:02:40.6]}
5... Nxc3 {[%clk 0:02:50.1]} 6. bxc3 {[%clk 0:02:40.3]} 6... c5 {[%clk
0:02:49.4]} 7. Bd3 {[%clk 0:02:40.5]} 7... Nc6 {[%clk 0:02:47.7]} 8. O-O {[%clk
0:02:41.1]} 8... Bg4 {[%clk 0:02:39.9]} 9. e6 {[%clk 0:02:41.3]} 9... Bxe6
{[%clk 0:02:36.6]} 10. Ng5 {[%clk 0:02:40.4]} 10... Qd7 {[%clk 0:02:32.2]} 11.
Qf3 {[%clk 0:02:37.7]} 11... h6 {[%clk 0:02:17.5]} 12. Nxe6 {[%clk 0:02:28.6]}
12... Qxe6 {[%clk 0:02:17.2]} 13. dxc5 {[%clk 0:02:28.9]} 13... Rd8 {[%clk
0:02:09.9]} 14. Rb1 {[%clk 0:02:28.1]} 14... Qc8 {[%clk 0:02:05.4]} 15. Bf4
{[%clk 0:02:26.1]} 15... e6 {[%clk 0:02:02.8]} 16. c4 {[%clk 0:02:23.5]} 16...
Bxc5 {[%clk 0:01:59.2]} 17. cxd5 {[%clk 0:02:23.5]} 17... Rxd5 {[%clk 0:01:56]}
18. Be4 {[%clk 0:02:23.5]} 18... Nd4 {[%clk 0:01:38.4]} 19. Qd3 {[%clk
0:02:20.1]} 19... Rd7 {[%clk 0:01:34.6]} 20. Rfd1 {[%clk 0:02:12]} 20... Bb6
{[%clk 0:01:22.2]} 21. Be5 {[%clk 0:02:06.5]} 21... Nf5 {[%clk 0:00:59.2]} 22.
Qb5 {[%clk 0:01:59.6]} 22... Ke7 {[%clk 0:00:30.3]} 23. Bxf5 {[%clk 0:01:53.6]}
23... exf5 {[%clk 0:00:27.7]} 24. Re1 {[%clk 0:01:51.7]} 24... Kf8 {[%clk
0:00:24.3]} 25. Ba1 {[%clk 0:01:42.5]} 25... Rd8 {[%clk 0:00:17.5]} 26. Qe5
{[%clk 0:01:40.5]} 26... f6 {[%clk 0:00:12.7]} 27. Qe7+ {[%clk 0:01:40.1]} 27...
Kg8 {[%clk 0:00:13.2]} 28. Rb3 {[%clk 0:01:33.1]} 28... Kh7 {[%clk 0:00:07.5]}
29. Rg3 {[%clk 0:01:30.5]} 29... Rhg8 {[%clk 0:00:07]} 30. Bxf6 {[%clk
0:01:28.1]} 30... Rd7 {[%clk 0:00:07.3]} 31. Qe6 {[%clk 0:01:22.5]} 31... Rc7
{[%clk 0:00:06.6]} 32. Qxc8 {[%clk 0:01:10.9]} 32... Rgxc8 {[%clk 0:00:05.7]}
33. Be5 {[%clk 0:01:05.9]} 33... Rf7 {[%clk 0:00:05.4]} 34. Rf3 {[%clk
0:01:00.1]} 34... Rxc2 {[%clk 0:00:04.6]} 35. a3 {[%clk 0:00:58.9]} 35... Re7
{[%clk 0:00:02.7]} 36. Rxf5 {[%clk 0:00:58.3]} 36... g6 {[%clk 0:00:02.1]} 37.
Rf8 {[%clk 0:00:57.4]} 37... Rxe5 {[%clk 0:00:01.7]} 38. Rd1 {[%clk 0:00:54]}
1-0

[Event "*** Titled Tuesday Blitz"]
[Site "Chess.com"]
[Date "2020.04.21"]
[Round "3"]
[White "pawnwonder"]
[Black "XiaoKangZhong"]
[Result "1-0"]
[WhiteElo "2181"]
[BlackElo "2364"]
[TimeControl "180+1"]
[EndTime "10:28:21 PDT"]
[Termination "pawnwonder won by resignation"]

1. e4 {[%clk 0:03:00.9]} 1... c6 {[%clk 0:02:59.6]} 2. d4 {[%clk 0:03:00.5]}
2... d5 {[%clk 0:02:59.8]} 3. Nc3 {[%clk 0:03:01.2]} 3... dxe4 {[%clk 0:03:00]}
4. Nxe4 {[%clk 0:03:02.1]} 4... Nf6 {[%clk 0:03:00.5]} 5. Nxf6+ {[%clk
0:03:02.1]} 5... exf6 {[%clk 0:03:01.4]} 6. c3 {[%clk 0:03:02.6]} 6... Bd6
{[%clk 0:03:01.5]} 7. Bd3 {[%clk 0:03:03]} 7... O-O {[%clk 0:03:02.4]} 8. Qc2
{[%clk 0:03:03.6]} 8... Re8+ {[%clk 0:03:03.1]} 9. Ne2 {[%clk 0:03:04.4]} 9...
h5 {[%clk 0:03:03.8]} 10. O-O {[%clk 0:03:03.1]} 10... Nd7 {[%clk 0:03:03.2]}
11. Bf4 {[%clk 0:03:00.1]} 11... Rxe2 {[%clk 0:02:57.4]} 12. Qxe2 {[%clk
0:02:59.7]} 12... Bxf4 {[%clk 0:02:57.7]} 13. Qe4 {[%clk 0:03:00]} 13... Bc7
{[%clk 0:01:56.1]} 14. Qh7+ {[%clk 0:02:52.6]} 14... Kf8 {[%clk 0:01:56.1]} 15.
Rfe1 {[%clk 0:02:51]} 15... Ne5 {[%clk 0:01:53.6]} 16. dxe5 {[%clk 0:02:49.3]}
16... Bxe5 {[%clk 0:01:54.5]} 17. f4 {[%clk 0:02:40.7]} 17... g6 {[%clk
0:01:36.5]} 18. Qh8+ {[%clk 0:02:30.2]} 18... Ke7 {[%clk 0:01:36.2]} 19. Qxd8+
{[%clk 0:02:30.9]} 19... Kxd8 {[%clk 0:01:37.1]} 20. fxe5 {[%clk 0:02:31.8]}
20... fxe5 {[%clk 0:01:37.8]} 21. Rxe5 {[%clk 0:02:30.7]} 21... Be6 {[%clk
0:01:38.5]} 22. Bxg6 {[%clk 0:02:26.3]} 22... Ke7 {[%clk 0:01:37.6]} 23. Bxf7
{[%clk 0:02:14.1]} 23... Kf6 {[%clk 0:01:38.5]} 24. Rxe6+ {[%clk 0:02:12.8]}
24... Kxf7 {[%clk 0:01:38.5]} 25. Rh6 {[%clk 0:02:12.6]} 25... Rd8 {[%clk
0:01:35.3]} 26. Rf1+ {[%clk 0:02:07.6]} 26... Kg7 {[%clk 0:01:34.5]} 27. Rxh5
{[%clk 0:02:07.7]} 27... Rd2 {[%clk 0:01:34.1]} 28. Rhf5 {[%clk 0:02:01.5]}
28... Rxb2 {[%clk 0:01:30.8]} 29. R5f2 {[%clk 0:02:01.7]} 29... Rb5 {[%clk
0:01:30.4]} 30. h4 {[%clk 0:01:58.4]} 30... Kg6 {[%clk 0:01:29.7]} 31. Kh2
{[%clk 0:01:58.2]} 31... a5 {[%clk 0:01:23.6]} 32. Kh3 {[%clk 0:01:55.3]} 32...
a4 {[%clk 0:01:22.4]} 33. Rf6+ {[%clk 0:01:54.2]} 33... Kg7 {[%clk 0:01:22.2]}
34. Rf7+ {[%clk 0:01:53.5]} 34... Kg8 {[%clk 0:01:22.6]} 35. R7f5 {[%clk
0:01:51.3]} 35... Rb2 {[%clk 0:01:16.2]} 36. R1f2 {[%clk 0:01:47]} 36... Rb1
{[%clk 0:01:14.9]} 37. Rg5+ {[%clk 0:01:36.2]} 37... Kh7 {[%clk 0:01:14.5]} 38.
Rf7+ {[%clk 0:01:31.7]} 38... Kh6 {[%clk 0:01:12]} 39. Kg4 {[%clk 0:01:11.6]}
39... c5 {[%clk 0:00:45.7]} 40. Rxc5 {[%clk 0:00:56.2]} 40... a3 {[%clk
0:00:41.3]} 41. Rcf5 {[%clk 0:00:51.6]} 41... Rb6 {[%clk 0:00:38.7]} 42. R5f6+
{[%clk 0:00:51.6]} 42... Rxf6 {[%clk 0:00:39.1]} 43. Rxf6+ {[%clk 0:00:52.5]}
43... Kg7 {[%clk 0:00:40]} 44. Rb6 {[%clk 0:00:53]} 44... Kh7 {[%clk 0:00:39.9]}
45. Rxb7+ {[%clk 0:00:53.2]} 45... Kh6 {[%clk 0:00:40.8]} 46. Rb3 {[%clk
0:00:54]} 46... Kg6 {[%clk 0:00:40.6]} 47. Rxa3 {[%clk 0:00:54.9]} 47... Kh7
{[%clk 0:00:41.4]} 48. Ra5 {[%clk 0:00:55.2]} 48... Kg7 {[%clk 0:00:41.4]} 49.
Rg5+ {[%clk 0:00:55]} 49... Kh7 {[%clk 0:00:41.4]} 50. c4 {[%clk 0:00:50.8]}
50... Kh6 {[%clk 0:00:41.6]} 51. c5 {[%clk 0:00:51.3]} 51... Kh7 {[%clk
0:00:42.3]} 52. c6 {[%clk 0:00:51.7]} 52... Kh6 {[%clk 0:00:43.2]} 53. c7 {[%clk
0:00:51.6]} 53... Kh7 {[%clk 0:00:44.1]} 54. c8=Q {[%clk 0:00:50.1]} 54... Kh6
{[%clk 0:00:45]} 55. a4 {[%clk 0:00:50]} 1-0

[Event "*** Titled Tuesday Blitz"]
[Site "Chess.com"]
[Date "2020.04.21"]
[Round "3"]
[White "Forantes"]
[Black "praveenb2002"]
[Result "0-1"]
[WhiteElo "2443"]
[BlackElo "2721"]
[TimeControl "180+1"]
[EndTime "10:28:22 PDT"]
[Termination "praveenb2002 won by resignation"]

1. Nf3 {[%clk 0:03:00.9]} 1... d5 {[%clk 0:02:59.2]} 2. g3 {[%clk 0:03:00.6]}
2... Bg4 {[%clk 0:02:58.5]} 3. Bg2 {[%clk 0:03:00.4]} 3... Nd7 {[%clk
0:02:58.1]} 4. d4 {[%clk 0:03:00.4]} 4... Ngf6 {[%clk 0:02:52.5]} 5. O-O {[%clk
0:03:00.1]} 5... e6 {[%clk 0:02:52.5]} 6. c4 {[%clk 0:02:59.3]} 6... c6 {[%clk
0:02:51]} 7. Nc3 {[%clk 0:02:59.2]} 7... dxc4 {[%clk 0:02:42.8]} 8. a4 {[%clk
0:02:27]} 8... a5 {[%clk 0:02:38.4]} 9. h3 {[%clk 0:02:15.7]} 9... Bh5 {[%clk
0:02:36.9]} 10. Bg5 {[%clk 0:02:06.3]} 10... Be7 {[%clk 0:02:35.5]} 11. b3
{[%clk 0:01:59.5]} 11... cxb3 {[%clk 0:02:23]} 12. Qxb3 {[%clk 0:02:00.4]} 12...
Ra7 {[%clk 0:02:20.7]} 13. Rab1 {[%clk 0:01:55]} 13... O-O {[%clk 0:02:20]} 14.
Rfd1 {[%clk 0:01:51.3]} 14... Nd5 {[%clk 0:02:11.8]} 15. Bxe7 {[%clk 0:01:45.8]}
15... Qxe7 {[%clk 0:02:12.7]} 16. e4 {[%clk 0:01:34.6]} 16... Nb4 {[%clk
0:02:00.9]} 17. g4 {[%clk 0:01:21.1]} 17... Bg6 {[%clk 0:02:00.5]} 18. Nd2
{[%clk 0:01:19.8]} 18... e5 {[%clk 0:01:48.9]} 19. d5 {[%clk 0:01:18.4]} 19...
Nf6 {[%clk 0:01:30.5]} 20. g5 {[%clk 0:00:51.5]} 20... Nh5 {[%clk 0:01:25.6]}
21. h4 {[%clk 0:00:50.7]} 21... Nf4 {[%clk 0:01:21.9]} 22. Nc4 {[%clk
0:00:23.7]} 22... cxd5 {[%clk 0:01:16.8]} 23. Nxd5 {[%clk 0:00:23.5]} 23...
Nfxd5 {[%clk 0:01:10.4]} 24. exd5 {[%clk 0:00:24.4]} 24... Bxb1 {[%clk
0:01:05.8]} 25. Qxb1 {[%clk 0:00:24.9]} 25... Qc7 {[%clk 0:00:43.8]} 26. Qe4
{[%clk 0:00:22.2]} 26... Qd7 {[%clk 0:00:32.1]} 27. Nxe5 {[%clk 0:00:21.5]}
27... Qxa4 {[%clk 0:00:30.9]} 28. d6 {[%clk 0:00:20.9]} 28... Qxd1+ {[%clk
0:00:30.8]} 29. Kh2 {[%clk 0:00:20.4]} 29... Qxd6 {[%clk 0:00:30.6]} 30. f4
{[%clk 0:00:17.8]} 30... Nc6 {[%clk 0:00:30.4]} 31. Ng4 {[%clk 0:00:16.7]} 31...
Raa8 {[%clk 0:00:26.3]} 32. h5 {[%clk 0:00:14.6]} 32... Rae8 {[%clk 0:00:26.4]}
33. Qc4 {[%clk 0:00:14.2]} 33... Qe6 {[%clk 0:00:25.2]} 34. Nh6+ {[%clk
0:00:07.4]} 34... gxh6 {[%clk 0:00:24.3]} 0-1

[Event "*** Titled Tuesday Blitz"]
[Site "Chess.com"]
[Date "2020.04.21"]
[Round "3"]
[White "BogdanDeac"]
[Black "CalinGheorghiu"]
[Result "1-0"]
[WhiteElo "2918"]
[BlackElo "2473"]
[TimeControl "180+1"]
[EndTime "10:28:22 PDT"]
[Termination "BogdanDeac won by resignation"]

1. Nf3 {[%clk 0:03:00.9]} 1... d5 {[%clk 0:02:56.9]} 2. d4 {[%clk 0:03:00.4]}
2... Nf6 {[%clk 0:02:57]} 3. c4 {[%clk 0:03:00.4]} 3... e6 {[%clk 0:02:55.7]} 4.
Bg5 {[%clk 0:03:00.9]} 4... Be7 {[%clk 0:02:51.5]} 5. Nc3 {[%clk 0:03:00.6]}
5... O-O {[%clk 0:02:48.1]} 6. Qc2 {[%clk 0:02:59.5]} 6... c6 {[%clk 0:02:41.4]}
7. e3 {[%clk 0:02:56.2]} 7... Nbd7 {[%clk 0:02:39.2]} 8. Rd1 {[%clk 0:02:55.6]}
8... Re8 {[%clk 0:02:37.8]} 9. Bd3 {[%clk 0:02:54.2]} 9... Nf8 {[%clk
0:02:35.1]} 10. Ne5 {[%clk 0:02:48.7]} 10... Qc7 {[%clk 0:02:19.4]} 11. f4
{[%clk 0:02:44.1]} 11... dxc4 {[%clk 0:02:16.7]} 12. Bxc4 {[%clk 0:02:44]} 12...
b5 {[%clk 0:02:16.2]} 13. Bd3 {[%clk 0:02:42.9]} 13... Bb7 {[%clk 0:02:15.7]}
14. Nxb5 {[%clk 0:02:40.6]} 14... Qa5+ {[%clk 0:01:57.9]} 15. Nc3 {[%clk
0:02:40.1]} 15... c5 {[%clk 0:01:57.4]} 16. O-O {[%clk 0:02:27.5]} 16... cxd4
{[%clk 0:01:55.4]} 17. exd4 {[%clk 0:02:27.6]} 17... Red8 {[%clk 0:01:53.9]} 18.
Bxf6 {[%clk 0:02:16.4]} 18... Bxf6 {[%clk 0:01:52]} 19. Be4 {[%clk 0:02:06.6]}
19... Qc7 {[%clk 0:01:22.2]} 20. Qf2 {[%clk 0:01:51.6]} 20... Rac8 {[%clk
0:01:00.7]} 21. d5 {[%clk 0:01:46.8]} 21... exd5 {[%clk 0:00:52.3]} 22. Nxd5
{[%clk 0:01:44]} 22... Bxd5 {[%clk 0:00:50.1]} 23. Bxd5 {[%clk 0:01:43.6]} 23...
Bxe5 {[%clk 0:00:36.9]} 24. fxe5 {[%clk 0:01:43.3]} 24... Ne6 {[%clk 0:00:37.8]}
25. h3 {[%clk 0:01:42.1]} 25... Rf8 {[%clk 0:00:30.3]} 26. Qe3 {[%clk
0:01:36.3]} 26... Qc5 {[%clk 0:00:24.5]} 27. Qf2 {[%clk 0:01:18.4]} 27... Qxf2+
{[%clk 0:00:19.7]} 28. Rxf2 {[%clk 0:01:17.5]} 28... Rc5 {[%clk 0:00:17.9]} 29.
Rdd2 {[%clk 0:01:00.6]} 29... Nc7 {[%clk 0:00:13.5]} 30. Bb3 {[%clk 0:00:57.8]}
30... Rxe5 {[%clk 0:00:12.3]} 31. Rd7 {[%clk 0:00:57.6]} 31... Ne6 {[%clk
0:00:11.7]} 32. Rxa7 {[%clk 0:00:57.4]} 32... Re1+ {[%clk 0:00:09.3]} 33. Kh2
{[%clk 0:00:56]} 33... g6 {[%clk 0:00:07.6]} 34. Bc4 {[%clk 0:00:55.2]} 34...
Rc1 {[%clk 0:00:06.5]} 35. b3 {[%clk 0:00:52.5]} 35... Ng5 {[%clk 0:00:04.1]}
36. h4 {[%clk 0:00:50.4]} 36... Ne6 {[%clk 0:00:03.4]} 37. Rfxf7 {[%clk
0:00:48.5]} 37... Rxf7 {[%clk 0:00:02.9]} 38. Bxe6 {[%clk 0:00:48.3]} 38... Rf1
{[%clk 0:00:02.8]} 39. a4 {[%clk 0:00:46.4]} 1-0

[Event "*** Titled Tuesday Blitz"]
[Site "Chess.com"]
[Date "2020.04.21"]
[Round "3"]
[White "DenishevM"]
[Black "Crazy_girl99"]
[Result "1-0"]
[WhiteElo "2644"]
[BlackElo "2414"]
[TimeControl "180+1"]
[EndTime "10:28:22 PDT"]
[Termination "DenishevM won by resignation"]

1. d4 {[%clk 0:03:00.9]} 1... d5 {[%clk 0:02:59.1]} 2. c4 {[%clk 0:03:00.9]}
2... c6 {[%clk 0:02:59.3]} 3. Nf3 {[%clk 0:03:01.1]} 3... Nf6 {[%clk 0:02:59.6]}
4. e3 {[%clk 0:02:58.8]} 4... g6 {[%clk 0:02:59.5]} 5. Nc3 {[%clk 0:02:58.5]}
5... Bg7 {[%clk 0:02:59.8]} 6. Be2 {[%clk 0:02:58.4]} 6... O-O {[%clk 0:03:00]}
7. O-O {[%clk 0:02:58.7]} 7... Ne4 {[%clk 0:02:57.3]} 8. Nxe4 {[%clk 0:02:56.2]}
8... dxe4 {[%clk 0:02:57.1]} 9. Nd2 {[%clk 0:02:57.1]} 9... e5 {[%clk
0:02:41.1]} 10. dxe5 {[%clk 0:02:50]} 10... Bxe5 {[%clk 0:02:40.1]} 11. Nxe4
{[%clk 0:02:42.8]} 11... Bxh2+ {[%clk 0:02:28.6]} 12. Kxh2 {[%clk 0:02:43.7]}
12... Qh4+ {[%clk 0:02:28.2]} 13. Kg1 {[%clk 0:02:44.3]} 13... Qxe4 {[%clk
0:02:28.7]} 14. Qd4 {[%clk 0:02:44.9]} 14... Bf5 {[%clk 0:02:16.7]} 15. b3
{[%clk 0:02:38.8]} 15... Nd7 {[%clk 0:02:14.1]} 16. Bb2 {[%clk 0:02:35]} 16...
Qxd4 {[%clk 0:02:13.7]} 17. Bxd4 {[%clk 0:02:28.4]} 17... Rfe8 {[%clk 0:02:11]}
18. Rad1 {[%clk 0:02:25.7]} 18... Rad8 {[%clk 0:02:05.9]} 19. Bf3 {[%clk
0:01:39.2]} 19... f6 {[%clk 0:01:58.1]} 20. a3 {[%clk 0:01:24.3]} 20... Kf7
{[%clk 0:01:38.6]} 21. b4 {[%clk 0:01:19.2]} 21... a6 {[%clk 0:01:37.8]} 22. Rc1
{[%clk 0:01:14.3]} 22... Be4 {[%clk 0:01:31.6]} 23. Be2 {[%clk 0:01:08.4]} 23...
h5 {[%clk 0:01:28.9]} 24. Rfd1 {[%clk 0:01:05.4]} 24... h4 {[%clk 0:01:25.9]}
25. Bb2 {[%clk 0:00:52]} 25... Rh8 {[%clk 0:01:14.6]} 26. f3 {[%clk 0:00:48]}
26... Bf5 {[%clk 0:01:14]} 27. Rd6 {[%clk 0:00:46.2]} 27... Ne5 {[%clk
0:00:56.8]} 28. Rcd1 {[%clk 0:00:44.4]} 28... Rxd6 {[%clk 0:00:52.2]} 29. Rxd6
{[%clk 0:00:45.3]} 29... Ke7 {[%clk 0:00:51.5]} 30. c5 {[%clk 0:00:42.8]} 30...
Be6 {[%clk 0:00:26.8]} 31. f4 {[%clk 0:00:35.4]} 31... Nd7 {[%clk 0:00:21.8]}
32. e4 {[%clk 0:00:29.8]} 32... Rf8 {[%clk 0:00:18.2]} 33. Kf2 {[%clk
0:00:25.6]} 33... f5 {[%clk 0:00:18.5]} 34. e5 {[%clk 0:00:22.3]} 34... Rg8
{[%clk 0:00:18.5]} 35. Rxe6+ {[%clk 0:00:21]} 35... Kxe6 {[%clk 0:00:15]} 36.
Bc4+ {[%clk 0:00:21.6]} 1-0

[Event "*** Titled Tuesday Blitz"]
[Site "Chess.com"]
[Date "2020.04.21"]
[Round "3"]
[White "Shukh_Nikolay"]
[Black "Sjakkerntobi"]
[Result "1/2-1/2"]
[WhiteElo "2444"]
[BlackElo "2227"]
[TimeControl "180+1"]
[EndTime "10:28:22 PDT"]
[Termination "Game drawn by repetition"]

1. e4 {[%clk 0:03:00.9]} 1... e6 {[%clk 0:02:58.7]} 2. d4 {[%clk 0:03:00.6]}
2... d5 {[%clk 0:02:59.6]} 3. Nc3 {[%clk 0:03:00]} 3... Bb4 {[%clk 0:02:59.3]}
4. Bd3 {[%clk 0:02:59.2]} 4... c5 {[%clk 0:02:54.5]} 5. a3 {[%clk 0:02:57.5]}
5... Bxc3+ {[%clk 0:02:54.4]} 6. bxc3 {[%clk 0:02:56.6]} 6... Ne7 {[%clk
0:02:53.8]} 7. Nf3 {[%clk 0:02:54.8]} 7... Nbc6 {[%clk 0:02:52.4]} 8. O-O {[%clk
0:02:52.7]} 8... O-O {[%clk 0:02:50.5]} 9. Re1 {[%clk 0:02:44.5]} 9... h6 {[%clk
0:02:48.7]} 10. Bf4 {[%clk 0:02:37.1]} 10... b6 {[%clk 0:02:40.8]} 11. h4 {[%clk
0:02:33]} 11... a5 {[%clk 0:02:39.7]} 12. h5 {[%clk 0:02:26.6]} 12... Ba6 {[%clk
0:02:38.4]} 13. a4 {[%clk 0:02:21.7]} 13... Bxd3 {[%clk 0:02:36.1]} 14. Qxd3
{[%clk 0:02:19.8]} 14... dxe4 {[%clk 0:02:24]} 15. Qxe4 {[%clk 0:02:18.1]} 15...
cxd4 {[%clk 0:02:21.8]} 16. cxd4 {[%clk 0:02:15.3]} 16... Rc8 {[%clk 0:02:21.6]}
17. c4 {[%clk 0:02:08.3]} 17... Nb4 {[%clk 0:02:11.5]} 18. Rec1 {[%clk
0:02:06.9]} 18... Re8 {[%clk 0:01:51]} 19. Ne5 {[%clk 0:02:00.2]} 19... Nf5
{[%clk 0:01:51.2]} 20. Be3 {[%clk 0:01:52.6]} 20... f6 {[%clk 0:01:40.3]} 21.
Nd3 {[%clk 0:01:46]} 21... Nxd3 {[%clk 0:01:36.6]} 22. Qxd3 {[%clk 0:01:45.6]}
22... Qd7 {[%clk 0:01:33.8]} 23. d5 {[%clk 0:01:34.1]} 23... Nxe3 {[%clk
0:01:24.7]} 24. fxe3 {[%clk 0:01:28.8]} 24... exd5 {[%clk 0:01:10.6]} 25. cxd5
{[%clk 0:01:26.5]} 25... Rxc1+ {[%clk 0:01:09.9]} 26. Rxc1 {[%clk 0:01:26]}
26... Qxa4 {[%clk 0:01:10.2]} 27. d6 {[%clk 0:01:24]} 27... Rd8 {[%clk
0:01:00.3]} 28. Qg6 {[%clk 0:00:36.1]} 28... Qa3 {[%clk 0:00:45.5]} 29. Rc7
{[%clk 0:00:30.2]} 29... Qxe3+ {[%clk 0:00:41.8]} 30. Kh2 {[%clk 0:00:23.9]}
30... Qe5+ {[%clk 0:00:38.1]} 31. Kh3 {[%clk 0:00:16.7]} 31... Qe6+ {[%clk
0:00:33.7]} 32. g4 {[%clk 0:00:14.8]} 32... Qe3+ {[%clk 0:00:33.4]} 33. Kg2
{[%clk 0:00:14.5]} 33... Qe2+ {[%clk 0:00:33]} 34. Kg3 {[%clk 0:00:14.5]} 34...
Qe3+ {[%clk 0:00:32.5]} 35. Kg2 {[%clk 0:00:14.7]} 35... Qe2+ {[%clk 0:00:27.8]}
36. Kg3 {[%clk 0:00:15.1]} 36... Qe3+ {[%clk 0:00:28]} 37. Kg2 {[%clk
0:00:15.1]} 1/2-1/2

[Event "*** Titled Tuesday Blitz"]
[Site "Chess.com"]
[Date "2020.04.21"]
[Round "3"]
[White "szefru"]
[Black "matiss90"]
[Result "0-1"]
[WhiteElo "2129"]
[BlackElo "2500"]
[TimeControl "180+1"]
[EndTime "10:28:24 PDT"]
[Termination "matiss90 won by resignation"]

1. e4 {[%clk 0:03:00.9]} 1... c5 {[%clk 0:02:58]} 2. Nf3 {[%clk 0:03:00.1]} 2...
d6 {[%clk 0:02:58.6]} 3. d4 {[%clk 0:02:59.3]} 3... cxd4 {[%clk 0:02:59.5]} 4.
Qxd4 {[%clk 0:02:59.8]} 4... Nc6 {[%clk 0:02:58.4]} 5. Bb5 {[%clk 0:02:59.4]}
5... Bd7 {[%clk 0:02:58.9]} 6. Qd3 {[%clk 0:02:58.5]} 6... h6 {[%clk 0:02:53.8]}
7. c4 {[%clk 0:02:57.9]} 7... Nf6 {[%clk 0:02:52.1]} 8. Nc3 {[%clk 0:02:57]}
8... g6 {[%clk 0:02:46.7]} 9. O-O {[%clk 0:02:56.7]} 9... Bg7 {[%clk 0:02:46.7]}
10. h3 {[%clk 0:02:56.4]} 10... O-O {[%clk 0:02:46.6]} 11. Be3 {[%clk
0:02:56.3]} 11... Rc8 {[%clk 0:02:45.7]} 12. Rab1 {[%clk 0:02:39.8]} 12... a6
{[%clk 0:02:39.7]} 13. Bxc6 {[%clk 0:02:39.4]} 13... Bxc6 {[%clk 0:02:38.8]} 14.
b4 {[%clk 0:02:39.7]} 14... b5 {[%clk 0:02:37.1]} 15. cxb5 {[%clk 0:02:35.4]}
15... axb5 {[%clk 0:02:37.1]} 16. Nd4 {[%clk 0:02:26.2]} 16... Nd7 {[%clk
0:01:34.1]} 17. Nxc6 {[%clk 0:02:16.3]} 17... Rxc6 {[%clk 0:01:35]} 18. Nxb5
{[%clk 0:02:14.2]} 18... Ne5 {[%clk 0:01:33]} 19. Qe2 {[%clk 0:02:11.8]} 19...
Nc4 {[%clk 0:01:23.5]} 20. Bd4 {[%clk 0:01:59.7]} 20... e5 {[%clk 0:01:11.2]}
21. Ba1 {[%clk 0:01:54.7]} 21... d5 {[%clk 0:01:05.4]} 22. exd5 {[%clk
0:01:51.1]} 22... Qxd5 {[%clk 0:01:04.9]} 23. Nc3 {[%clk 0:01:50.4]} 23... Qe6
{[%clk 0:01:05]} 24. b5 {[%clk 0:01:46.5]} 24... Rcc8 {[%clk 0:01:05.1]} 25. a4
{[%clk 0:01:45]} 25... f5 {[%clk 0:01:04.1]} 26. Rfc1 {[%clk 0:01:33.6]} 26...
e4 {[%clk 0:00:57.5]} 27. Qa2 {[%clk 0:00:42.8]} 27... e3 {[%clk 0:00:53.1]} 28.
f3 {[%clk 0:00:40]} 28... Kh7 {[%clk 0:00:46.7]} 29. Ne2 {[%clk 0:00:39.6]}
29... Bxa1 {[%clk 0:00:43.4]} 30. Rxa1 {[%clk 0:00:39.4]} 30... Rfd8 {[%clk
0:00:41.7]} 31. Qb3 {[%clk 0:00:36.8]} 31... Rd2 {[%clk 0:00:39.4]} 32. Re1
{[%clk 0:00:37]} 32... Qe5 {[%clk 0:00:29.4]} 33. a5 {[%clk 0:00:32.2]} 33...
Rxe2 {[%clk 0:00:28.3]} 34. a6 {[%clk 0:00:24.9]} 34... Rb2 {[%clk 0:00:21.2]}
35. Qa4 {[%clk 0:00:21.8]} 35... Qg3 {[%clk 0:00:20.9]} 0-1

[Event "*** Titled Tuesday Blitz"]
[Site "Chess.com"]
[Date "2020.04.21"]
[Round "3"]
[White "Atanejhad"]
[Black "BrizuelaReivis"]
[Result "1-0"]
[WhiteElo "2530"]
[BlackElo "2262"]
[TimeControl "180+1"]
[EndTime "10:28:24 PDT"]
[Termination "Atanejhad won by resignation"]

1. e4 {[%clk 0:03:00.9]} 1... e6 {[%clk 0:03:00.2]} 2. d4 {[%clk 0:02:59.1]}
2... d5 {[%clk 0:03:00.1]} 3. Nd2 {[%clk 0:02:59.6]} 3... Nf6 {[%clk 0:03:00.5]}
4. e5 {[%clk 0:02:58.3]} 4... Nfd7 {[%clk 0:03:01]} 5. f4 {[%clk 0:02:58.9]}
5... c5 {[%clk 0:03:01.4]} 6. c3 {[%clk 0:02:59.8]} 6... Nc6 {[%clk 0:03:02.3]}
7. Ngf3 {[%clk 0:03:00.1]} 7... Be7 {[%clk 0:03:02.6]} 8. Bd3 {[%clk 0:02:58.8]}
8... f6 {[%clk 0:02:57.3]} 9. exf6 {[%clk 0:02:54.7]} 9... Bxf6 {[%clk
0:02:47.5]} 10. dxc5 {[%clk 0:02:39.7]} 10... Nxc5 {[%clk 0:02:45.8]} 11. Bc2
{[%clk 0:02:40.6]} 11... Qb6 {[%clk 0:02:42.1]} 12. Qe2 {[%clk 0:02:33.2]} 12...
O-O {[%clk 0:02:41]} 13. Nb3 {[%clk 0:02:27.2]} 13... e5 {[%clk 0:02:25.9]} 14.
fxe5 {[%clk 0:02:18]} 14... Nxe5 {[%clk 0:02:25.2]} 15. Nxe5 {[%clk 0:01:18.4]}
15... Bxe5 {[%clk 0:02:17.1]} 16. Be3 {[%clk 0:01:09]} 16... d4 {[%clk
0:02:04.9]} 17. cxd4 {[%clk 0:01:05.3]} 17... Nxb3 {[%clk 0:02:00.7]} 18. Bxb3+
{[%clk 0:00:58.9]} 18... Be6 {[%clk 0:01:55.4]} 19. dxe5 {[%clk 0:00:57.3]}
19... Qa5+ {[%clk 0:01:49.1]} 20. Bd2 {[%clk 0:00:57.1]} 20... Qb6 {[%clk
0:01:47.4]} 21. Bxe6+ {[%clk 0:00:51.7]} 21... Qxe6 {[%clk 0:01:48.3]} 22. Bc3
{[%clk 0:00:48.9]} 22... Rac8 {[%clk 0:01:36.5]} 23. a3 {[%clk 0:00:45.3]} 23...
Rf5 {[%clk 0:01:35.2]} 24. O-O-O {[%clk 0:00:41.5]} 24... Rxe5 {[%clk
0:01:31.5]} 25. Rd8+ {[%clk 0:00:33.1]} 25... Kf7 {[%clk 0:01:22.8]} 26. Qf3+
{[%clk 0:00:15.9]} 26... Ke7 {[%clk 0:00:44.5]} 27. Rxc8 {[%clk 0:00:14.5]}
27... Qxc8 {[%clk 0:00:44.3]} 28. Rf1 {[%clk 0:00:12.2]} 1-0